fUST/lending_fUST_20260301
["ID","MTS","AMOUNT","RATE_DAILY","PERIOD"]
[406946418,1772330831782,-250.0,0.00012418,2]
[406946419,1772330831803,-250.0,0.00012418,2]
[406946420,1772330831827,-250.0,0.00012418,2]
[406946421,1772330831851,-261.16198409,0.00012418,2]
[406946422,1772330831876,-250.0,0.00012418,2]
[406946423,1772330831899,-250.0,0.00012418,2]
[406946424,1772330831921,-250.0,0.00012418,2]
[406946425,1772330831944,-250.0,0.00012418,2]
[406946426,1772330831966,-250.0,0.00012418,2]
[406946427,1772330831989,-250.0,0.00012418,2]
[406946428,1772330832012,-250.0,0.00012418,2]
[406946429,1772330832038,-250.0,0.00012418,2]
[406946430,1772330832060,-250.0,0.00012418,2]
[406946431,1772330832082,-250.0,0.00012418,2]
[406946432,1772330832105,-264.88698311,0.00012418,2]
[406946433,1772330832129,-250.0,0.00012418,2]
[406946434,1772330832160,-250.0,0.00012418,2]
[406946435,1772330832185,-250.0,0.00012418,2]
[406946436,1772330832208,-250.0,0.00012418,2]
[406946437,1772330832232,-250.0,0.00012418,2]
[406946438,1772330832255,-500.0,0.00012418,2]
[406946439,1772330832279,-250.0,0.00012418,2]
[406946440,1772330832302,-500.0,0.00012418,2]
[406946441,1772330832326,-500.0,0.00012418,2]
[406946442,1772330832349,-500.0,0.00012418,2]
[406946443,1772330832375,-500.0,0.00012418,2]
[406946444,1772330832398,-500.0,0.00012418,2]
[406946445,1772330832421,-500.0,0.00012418,2]
[406946446,1772330832444,-500.0,0.00012418,2]
[406946447,1772330832467,-500.0,0.00012418,2]
[406946448,1772330832488,-500.0,0.00012418,2]
[406946449,1772330832511,-500.0,0.00012418,2]
[406946450,1772330832533,-500.0,0.00012418,2]
[406946451,1772330832555,-500.0,0.00012418,2]
[406946452,1772330832578,-500.0,0.00012418,2]
[406946453,1772330832601,-2830.69256056,0.00012423,2]
[406946454,1772330832626,-177.508,0.00012424,2]
[406946455,1772330832648,-160.0,0.00012526,3]
[406946456,1772330832670,-161.76225866,0.00012526,5]
[406946457,1772330832693,-1109.60089057,0.00012577,6]
[406946458,1772331013504,3183.63,0.0001001,2]
[406946534,1772331033203,-187.78006525,0.00012459,2]
[406946535,1772331033212,-74.72931987,0.00012459,2]
[406946560,1772331038319,-175.27068013,0.00012459,2]
[406946561,1772331038329,-194.72792766,0.00012459,2]
[406946562,1772331038339,-250.0,0.00012459,2]
[406946563,1772331038349,-201.93286099,0.00012459,2]
[406946564,1772331038359,-250.0,0.00012459,2]
[406946565,1772331038368,-209.40437684,0.00012459,2]
[406946566,1772331038378,-250.0,0.00012459,2]
[406946567,1772331038387,-217.15233878,0.00012459,2]
[406946568,1772331038396,-259.37027861,0.00012459,2]
[406946569,1772331038406,-185.18362628,0.00012459,2]
[406946570,1772331038416,-500.0,0.00012459,2]
[406946571,1772331038425,-518.80083593,0.00012459,2]
[406946572,1772331038435,-5000.0,0.00012466,2]
[406946573,1772331038444,-1315.9702972,0.00012577,6]
[406946574,1772331038453,-150.0,0.00012592,2]
[406946575,1772331038463,-788.0,0.000126,2]
[406946576,1772331038472,-198.67316988,0.00012607,2]
[406946577,1772331038482,-2426.04306913,0.00012634,2]
[406946578,1772331038491,-300.0,0.00012669,2]
[406946579,1772331038500,-600.0,0.00012672,2]
[406946580,1772331038510,-2425.57118777,0.00012865,8]
[406946581,1772331038520,-233.511042,0.00012906,2]
[406946582,1772331038529,-299.7063997,0.00013034,2]
[406946583,1772331038540,-321.75645276,0.00013141,2]
[406946584,1772331038551,-2425.57118777,0.00013153,10]
[406946585,1772331038560,-593.38573305,0.00013273,2]
[406946586,1772331038570,-500.0,0.00013273,2]
[406946587,1772331038580,-500.0,0.00013273,2]
[406946588,1772331038589,-500.97322228,0.00013273,2]
[406946589,1772331038599,-500.0,0.00013273,2]
[406946590,1772331038608,-518.8840273,0.00013289,2]
[406946591,1772331038618,-1185.1261108,0.00013322,2]
[406946592,1772331038627,-800.0,0.00013335,2]
[406946593,1772331038638,-836.33461768,0.00013358,2]
[406946594,1772331038648,-233.511042,0.00013427,2]
[406946595,1772331038657,-2425.57118777,0.00013442,13]
[406946596,1772331038666,-645.59738972,0.00013477,2]
[406946597,1772331038676,-357.25409408,0.00013492,2]
[406946598,1772331038685,-311.84359792,0.00013504,4]
[406946599,1772331038694,-264.4373789,0.00013657,2]
[406946600,1772331038704,-300.0,0.00013673,2]
[406946601,1772331038713,-367.72166029,0.00013679,2]
[406946602,1772331038723,-212.01851378,0.00013698,2]
[406946603,1772331038732,-156.0,0.00013699,2]
[406946604,1772331038741,-1000.0,0.00013699,2]
[406946605,1772331038751,-1118.633388,0.00013699,2]
[406946606,1772331038761,-500.0,0.00013699,2]
[406946607,1772331038770,-500.0,0.00013699,2]
[406946608,1772331038780,-500.0,0.00013699,2]
[406946609,1772331038791,-500.0,0.00013699,2]
[406946610,1772331038801,-500.0,0.00013699,2]
[406946611,1772331038810,-500.0,0.00013699,2]
[406946612,1772331038820,-2425.57118777,0.0001373,15]
[406946613,1772331038829,-520.47595982,0.00013821,2]
[406946614,1772331038839,-1000.0,0.00013821,2]
[406946615,1772331038849,-1000.0,0.00013821,2]
[406946616,1772331038858,-420.0,0.00013898,2]
[406946617,1772331038868,-15.22622358,0.00013918,2]
[406946618,1772331038878,-500.0,0.00013918,2]
[406946619,1772331038888,-720.0,0.00013939,2]
[406946620,1772331038898,-233.511042,0.00013949,2]
[406946621,1772331038908,-2425.57118777,0.00014018,17]
[406946622,1772331038917,-784.80760172,0.00014175,2]
[406946623,1772331038927,-676.90550368,0.00014175,2]
[406946624,1772331038936,-296.64377116,0.00014202,2]
[406946625,1772331038946,-573.99052911,0.00014216,2]
[406946626,1772331038956,-600.0,0.00014221,2]
[406946627,1772331038965,-1000.0,0.00014247,2]
[406946628,1772331038975,-290.36488872,0.00014247,2]
[406946629,1772331038985,-663.65406146,0.00014247,2]
[406946630,1772331038994,-1000.0,0.00014247,2]
[406946631,1772331039004,-1000.0,0.00014247,2]
[406946632,1772331039013,-1000.0,0.00014247,2]
[406946633,1772331039022,-2425.57118777,0.00014307,19]
[406946634,1772331039032,-1500.0,0.00014368,2]
[406946635,1772331039043,-1500.0,0.00014368,2]
[406946636,1772331039053,-233.511042,0.0001447,2]
[406946637,1772331039064,-1074.58587163,0.00014548,2]
[406946638,1772331039077,-177.0,0.00014592,2]
[406946639,1772331039086,-2425.57118777,0.00014595,21]
[406946640,1772331039097,-900.0,0.00014768,2]
[406946641,1772331039107,-1500.0,0.00014795,2]
[406946642,1772331039116,-253.00069867,0.00014795,2]
[406946643,1772331039125,-1500.0,0.00014795,2]
[406946644,1772331039136,-268.28230861,0.00014795,2]
[406946645,1772331039145,-2425.57118777,0.00014883,24]
[406946646,1772331039153,-2000.0,0.00014916,2]
[406946647,1772331039162,-2000.0,0.00014916,2]
[406946648,1772331039172,-233.511042,0.00014991,2]
[406946649,1772331039181,-1118.20969352,0.00015,2]
[406946650,1772331039193,-177.745663,0.00015068,2]
[406946651,1772331039206,-2425.57118777,0.00015172,26]
[406946652,1772331039228,-585.0,0.00015247,2]
[406946653,1772331039247,-561.45580696,0.00015316,2]
[406946654,1772331039261,-864.0,0.00015333,2]
[406946655,1772331039272,-2000.0,0.00015342,2]
[406946656,1772331039283,-2000.0,0.00015342,2]
[406946657,1772331039294,-1372.31,0.00015454,3]
[406946658,1772331039303,-686.16,0.00015454,3]
[406946659,1772331039313,-343.08,0.00015454,3]
[406946660,1772331039324,-171.54,0.00015454,3]
[406946661,1772331039335,-514.64,0.00015454,3]
[406946662,1772331039347,-2425.57118777,0.0001546,28]
[406946663,1772331039359,-2500.0,0.00015464,2]
[406946664,1772331039369,-2500.0,0.00015464,2]
[406946665,1772331039380,-2744.63,0.0001558,3]
[406946666,1772331039392,-1135.57,0.0001559,2]
[406946667,1772331039403,-1947.17275769,0.00015634,2]
[406946668,1772331039413,-637.96260089,0.00015699,2]
[406946669,1772331039422,-282.56587529,0.000157,2]
[406946670,1772331039431,-1199.92671473,0.000157,2]
[406946673,1772331039640,-1237.77527491,0.000157,2]
[406946676,1772331039650,-1559.99822225,0.000157,2]
[406946679,1772331039660,-2425.57118777,0.00015748,30]
[406946682,1772331039670,-481.42,0.00015768,2]
[406946684,1772331039679,-6909.89800671,0.000158,5]
[406947226,1772331045923,-639.84152621,0.00012359,2]
[406947249,1772331046135,-4360.15847379,0.00012359,2]
[406947251,1772331046144,-150.10006,0.00012484,2]
[406947253,1772331046154,-9016.14895512,0.000158,5]
[406947258,1772331046188,-2944.88961844,0.000158,5]
[406947404,1772331184892,210.19,0.000158,120]
[406947416,1772331647698,206.44505027,0.000158,120]
[406947417,1772331716076,1104.465,0.000158,120]
[406947614,1772332237996,-1134.089456,0.00012687,2]
[406947615,1772332238008,-3399.20251403,0.00012687,2]
[406947834,1772332246093,-466.70802997,0.00012687,2]
[406947835,1772332246102,-150.0,0.0001288,2]
[406947836,1772332246112,-300.0,0.00013272,2]
[406947837,1772332246122,-300.0,0.00013272,2]
[406947838,1772332246132,-300.0,0.00013272,2]
[406947839,1772332246141,-300.0,0.00013272,2]
[406947840,1772332246152,-46.79969807,0.00013273,2]
[406947841,1772332334923,265.6,0.000158,120]
[406947852,1772332942954,1431.88,0.0001001,2]
[406947854,1772333258673,11848.94900457,0.0001,2]
[406947883,1772333432030,-184.10770007,0.00011532,2]
[406947884,1772333432039,-5000.0,0.00011648,2]
[406947886,1772333432049,-586.0,0.00011766,2]
[406947888,1772333432059,-150.0,0.00011826,2]
[406947890,1772333432070,-200.0,0.0001326,2]
[406947892,1772333432079,-454.96180762,0.00013273,2]
[406947894,1772333432088,-502.60106214,0.00013273,2]
[406947896,1772333432099,-500.0,0.00013273,2]
[406947898,1772333432107,-434.04508804,0.00013273,2]
[406947900,1772333432118,-1113.05095169,0.00013273,2]
[406947902,1772333432127,-500.0,0.00013273,2]
[406947904,1772333432136,-500.0,0.00013273,2]
[406947906,1772333432145,-552.96973547,0.00013698,2]
[406948050,1772333438251,-4447.03026453,0.00013698,2]
[406948051,1772333438260,-1000.0,0.00013699,2]
[406948052,1772333438270,-500.0,0.00013699,2]
[406948053,1772333438280,-500.0,0.00013699,2]
[406948054,1772333438291,-2943.9491794,0.00013705,2]
[406948055,1772333438300,-1000.0,0.00013821,2]
[406948057,1772333438311,-1000.0,0.00013821,2]
[406948059,1772333438320,-177.0,0.00013826,2]
[406948060,1772333438330,-517.90277329,0.00013918,2]
[406948061,1772333438339,-4921.9955903,0.00014104,2]
[406948062,1772333438349,-1000.0,0.00014247,2]
[406948063,1772333438359,-1000.0,0.00014247,2]
[406948064,1772333438368,-1500.0,0.00014368,2]
[406948065,1772333438378,-1500.0,0.00014368,2]
[406948066,1772333438387,-1703.77616302,0.00014495,2]
[406948067,1772333438396,-177.50935417,0.00014595,2]
[406948068,1772333438406,-252.20703193,0.00014795,2]
[406948070,1772333438415,-1500.0,0.00014795,2]
[406948072,1772333438424,-2000.0,0.00014916,2]
[406948073,1772333438434,-2000.0,0.00014916,2]
[406948074,1772333438444,-2208.474,0.00015086,2]
[406948075,1772333438453,-1056.198,0.00015086,2]
[406948076,1772333438463,-641.99,0.00015086,2]
[406948077,1772333438473,-757.0,0.00015086,2]
[406948078,1772333438482,-2000.0,0.00015342,2]
[406948079,1772333438492,-2500.0,0.00015464,2]
[406948080,1772333438503,-2059.64251624,0.00015464,2]
[406948081,1772333438512,-160.0,0.00015758,5]
[406948082,1772333438522,-129.06341973,0.000158,5]
[406948083,1772333438532,-480.0,0.000158,10]
[406948084,1772333438542,-1167.0,0.000158,2]
[406948085,1772333438552,-1009.0,0.000158,2]
[406948086,1772333438561,-1009.15,0.000158,3]
[406948087,1772333438571,-160.72269953,0.000158,2]
[406948088,1772333438581,-578.24458157,0.000158,2]
[406948089,1772333438590,-312.49699939,0.000158,2]
[406948090,1772333438601,-156.24849973,0.000158,2]
[406948091,1772333438611,-171.41810208,0.000158,2]
[406948092,1772333438620,-154.72190935,0.000158,2]
[406948093,1772333438630,-219.93383184,0.000158,2]
[406948094,1772333438640,-194.99977777,0.000158,2]
[406948095,1772333438651,-500.0,0.000158,2]
[406948096,1772333438661,-500.0,0.000158,2]
[406948097,1772333438671,-500.0,0.000158,2]
[406948098,1772333438680,-500.0,0.000158,2]
[406948099,1772333438690,-315.59,0.000158,2]
[406948100,1772333438700,-261.52478427,0.000158,2]
[406948101,1772333438711,-204.0,0.00015826,2]
[406948102,1772333438721,-1135.57,0.0001586,2]
[406948103,1772333438731,-2538.47864415,0.0001589,2]
[406948104,1772333438740,-1199.92671473,0.00015913,4]
[406948105,1772333438750,-1237.77527491,0.00015913,4]
[406948106,1772333438760,-422.31902746,0.00016012,2]
[406948107,1772333438771,-2425.57118777,0.00016037,32]
[406948108,1772333438780,-1559.99822225,0.0001606,5]
[406948109,1772333438790,-600.0,0.00016115,2]
[406948110,1772333438799,-1199.92671473,0.00016126,6]
[406948111,1772333438809,-1237.77527491,0.00016126,6]
[406948112,1772333438819,-1135.57,0.0001613,2]
[406948113,1772333438829,-535.83426359,0.00016156,5]
[406948114,1772333438838,-2425.57118777,0.00016325,35]
[406948115,1772333438848,-1199.92671473,0.00016338,8]
[406948116,1772333438858,-1237.77527491,0.00016338,8]
[406948117,1772333438867,-1135.57,0.000164,2]
[406948118,1772333438877,-1559.99822225,0.00016419,9]
[406948119,1772333438886,-500.0,0.00016438,2]
[406948120,1772333438896,-500.0,0.00016438,2]
[406948121,1772333438906,-151.0,0.00016438,2]
[406948122,1772333438917,-161.974856,0.00016438,2]
[406948123,1772333438929,-250.4537762,0.00016438,2]
[406948124,1772333438939,-535.83426359,0.00016512,9]
[406948125,1772333438949,-578.24458157,0.00016538,9]
[406948126,1772333438958,-312.49699939,0.00016538,9]
[406948127,1772333438968,-1703.77616298,0.00016545,2]
[406948128,1772333438977,-1199.92671473,0.00016551,10]
[406948129,1772333438987,-1237.77527491,0.00016551,10]
[406948130,1772333438996,-385.93,0.0001659,2]
[406948131,1772333439007,-2425.57118777,0.00016613,37]
[406948132,1772333439016,-1135.57,0.0001667,2]
[406948133,1772333439026,-1199.92671473,0.00016764,13]
[406948134,1772333439035,-1237.77527491,0.00016764,13]
[406948135,1772333439045,-1559.99822225,0.00016779,13]
[406948136,1772333439054,-5244.73043473,0.000168,3]
[406948137,1772333439064,-305.0,0.00016854,2]
[406948138,1772333439073,-535.83426359,0.00016868,13]
[406948139,1772333439083,-2425.57118777,0.00016902,39]
[406948140,1772333439092,-1135.57,0.0001694,2]
[406948141,1772333439102,-1199.92671473,0.00016977,15]
[406948142,1772333439112,-1237.77527491,0.00016977,15]
[406948143,1772333439122,-355.0,0.00017029,2]
[406948144,1772333439132,-1559.99822225,0.00017138,16]
[406948145,1772333439141,-1199.92671473,0.0001719,17]
[406948146,1772333439151,-1237.77527491,0.0001719,17]
[406948147,1772333439160,-2425.57118777,0.0001719,41]
[406948148,1772333439170,-1135.57,0.0001721,2]
[406948149,1772333439179,-535.83426359,0.00017225,16]
[406948150,1772333439189,-194.99977777,0.00017268,17]
[406948151,1772333439200,-578.24458157,0.00017275,17]
[406948152,1772333439209,-312.49699939,0.00017275,17]
[406948153,1772333439219,-154.72190935,0.00017275,17]
[406948154,1772333439229,-219.93383184,0.00017275,17]
[406948155,1772333439240,-1039.0,0.00017312,2]
[406948156,1772333439250,-646.0,0.00017312,2]
[406948157,1772333439260,-385.93,0.0001738,2]
[406948158,1772333439269,-1199.92671473,0.00017403,19]
[406948159,1772333439279,-1237.77527491,0.00017403,19]
[406948160,1772333439289,-2425.57118777,0.00017478,43]
[406948161,1772333439299,-1135.57,0.0001748,2]
[406948162,1772333439310,-1559.99822225,0.00017498,20]
[406948163,1772333439320,-171.41810208,0.00017521,20]
[406948164,1772333439331,-1199.92671473,0.00017615,21]
[406948165,1772333439340,-1237.77527491,0.00017615,21]
[406948166,1772333439350,-720.0,0.00017726,2]
[406948167,1772333439360,-1135.57,0.0001775,2]
[406948168,1772333439370,-2425.57118777,0.00017767,46]
[406948169,1772333439380,-150.0,0.00017808,2]
[406948170,1772333439391,-150.44013726,0.00017808,2]
[406948171,1772333439400,-231.0,0.00017826,2]
[406948172,1772333439410,-1199.92671473,0.00017828,24]
[406948173,1772333439419,-1237.77527491,0.00017828,24]
[406948174,1772333439429,-1559.99822225,0.00017858,24]
[406948175,1772333439438,-1661.78,0.0001789,3]
[406948176,1772333439447,-941.68,0.0001789,3]
[406948177,1772333439456,-470.84,0.0001789,3]
[406948178,1772333439464,-235.42,0.0001789,3]
[406948179,1772333439472,-706.28,0.0001789,3]
[406948180,1772333439481,-5059.77859158,0.00017899,2]
[406948183,1772333439722,-10000.0,0.000179,2]
[406948184,1772333439731,-226.0527002,0.00017913,2]
[406948185,1772333439741,-2705.41,0.00017924,2]
[406948186,1772333439751,-535.83426359,0.00017937,24]
[406948187,1772333439761,-15516.71796631,0.00018,2]
[406948223,1772333440625,-1313.39573619,0.00018,2]
[406948226,1772333440636,-609.82875241,0.00018,2]
[406948340,1772333446171,-1043.45699513,0.00018,2]
[406948343,1772333446225,-8422.07796057,0.00018,2]
[406948365,1772334043725,-498.84045216,0.00011962,2]
[406948369,1772334157459,1043.64494272,0.0001,2]
[406948394,1772334631746,161.76,0.000158,120]
[406948541,1772334640851,-820.05999485,0.00011607,2]
[406949149,1772335843464,-1381.67222172,0.00011376,2]
[406949449,1772335846546,-3618.32777828,0.00011376,2]
[406949451,1772335846556,-150.0,0.00011607,2]
[406949454,1772335846566,-200.0,0.00012001,2]
[406949456,1772335846575,-177.0,0.00013608,2]
[406949458,1772335846590,-285.13629287,0.0001377,2]
[406949461,1772335846601,-300.0,0.00013917,2]
[406949463,1772335846610,-925.64232994,0.00013918,2]
[406949465,1772335846619,-500.0,0.00013918,2]
[406949467,1772335846629,-500.0,0.00013918,2]
[406949469,1772335846639,-500.0,0.00013918,2]
[406949471,1772335846649,-411.73860522,0.00013918,2]
[406949473,1772335846658,-162.98408234,0.00013918,2]
[406949475,1772335846668,-571.103,0.00014854,2]
[406949477,1772335846678,-5000.0,0.00015,2]
[406949479,1772335846688,-204.0,0.00015607,2]
[406949481,1772335846700,-559.316694,0.00015795,2]
[406949483,1772335846710,-153.0,0.00017,2]
[406949486,1772335846720,-708.3793661,0.0001701,2]
[406949488,1772335846731,-703.84156319,0.0001701,2]
[406949490,1772335846742,-211.27994533,0.00017581,2]
[406949492,1772335846752,-231.0,0.00017607,2]
[406949494,1772335846761,-1841.14308538,0.0001764,2]
[406949496,1772335846773,-150.0,0.00017808,2]
[406949498,1772335846783,-431.0,0.00017854,2]
[406949500,1772335846792,-500.0,0.00017999,2]
[406949502,1772335846802,-3812.10825498,0.00018,2]
[406949504,1772335846811,-578.24458157,0.00018013,25]
[406949506,1772335846822,-312.49699939,0.00018013,25]
[406949508,1772335846831,-397.81938307,0.0001802,2]
[406949650,1772337031556,-450.07250074,0.00011962,2]
[406949652,1772337031568,-4549.92749926,0.00011962,2]
[406949654,1772337031577,-4762.67118144,0.00012083,2]
[406949656,1772337031586,-590.0,0.00012083,2]
[406949658,1772337031596,-1200.0,0.00012204,2]
[406949659,1772337031605,-300.0,0.00012326,2]
[406949661,1772337031614,-300.0,0.00012326,2]
[406949662,1772337031624,-300.0,0.00012327,2]
[406949664,1772337031633,-300.0,0.00012327,2]
[406949666,1772337031642,-300.0,0.00012328,2]
[406949668,1772337031651,-529.56933212,0.00012329,2]
[406949671,1772337031664,-421.55066788,0.00012329,2]
[406949673,1772337031673,-1056.8,0.00012329,2]
[406949675,1772337031682,-880.67,0.00012329,2]
[406949677,1772337031691,-162.87152057,0.00012329,2]
[406949851,1772337040256,-571.01847943,0.00012329,2]
[406949852,1772337040266,-611.57,0.00012329,2]
[406949853,1772337040275,-509.64,0.00012329,2]
[406949854,1772337040284,-424.7,0.00012329,2]
[406949855,1772337040297,-353.92,0.00012329,2]
[406949856,1772337040306,-294.93,0.00012329,2]
[406949857,1772337040316,-245.78,0.00012329,2]
[406949858,1772337040327,-204.82,0.00012329,2]
[406949859,1772337040338,-170.68,0.00012329,2]
[406949860,1772337040348,-853.42,0.00012329,2]
[406949861,1772337040357,-150.0,0.0001247,2]
[406949862,1772337040368,-1439.55791736,0.000129,2]
[406949863,1772337040384,-500.0,0.00012998,2]
[406949864,1772337040394,-469.72587528,0.00013,2]
[406949880,1772337045663,-5000.0,0.00012205,2]
[406949881,1772337045672,-1604.77212734,0.00013,2]
[406949885,1772337196595,229.44,0.000158,120]
[406949891,1772337662453,-2190.67907058,0.00012083,2]
[406949904,1772338186443,951.93,0.00010343,30]
[406949905,1772338186814,1903.86,0.00010975,30]
[406949906,1772338187193,2855.8,0.00011606,30]
[406949907,1772338190183,-808.455246,0.0001139,2]
[406949908,1772338190207,-5000.0,0.00011667,2]
[406949909,1772338190230,-150.0,0.00011785,2]
[406949910,1772338190253,-300.0,0.00011902,2]
[406949911,1772338190275,-41.544754,0.00011903,2]
[406949975,1772338231996,-300.0,0.00011611,2]
[406949976,1772338232006,-5000.0,0.00011784,2]
[406949978,1772338232016,-327.43560366,0.00011784,2]
[406950089,1772338240222,-258.56439634,0.00011784,2]
[406950091,1772338240232,-300.0,0.00011903,2]
[406950093,1772338240241,-300.0,0.00011903,2]
[406950095,1772338240251,-300.0,0.00011903,2]
[406950097,1772338240260,-300.0,0.00011903,2]
[406950099,1772338240269,-1200.0,0.00011903,2]
[406950101,1772338240279,-3685.60148076,0.00011904,2]
[406950373,1772338245942,-2440.95,0.00011904,2]
[406950374,1772338245954,-464.87788521,0.00011904,2]
[406950375,1772338306113,-3700.0,0.00011785,2]
[406950376,1772338367739,-1000.0,0.00011667,2]
[406950377,1772338369107,-1000.0,0.00011667,2]
[406950378,1772338370889,-712.45079201,0.00011667,2]
[406950379,1772338370910,-150.0,0.00011726,2]
[406950380,1772338370932,-137.54920799,0.00011785,2]
[406950381,1772338372542,-1000.0,0.00011785,2]
[406950382,1772338374006,-162.45079201,0.00011785,2]
[406950383,1772338374028,-837.54920799,0.00011904,2]
[406950384,1772338376365,-1000.0,0.00011904,2]
[406950385,1772338377974,-1000.0,0.00011904,2]
[406950386,1772338380215,-1000.0,0.00011785,2]
[406950387,1772338382151,-1000.0,0.00011785,2]
[406950388,1772338383535,-1000.0,0.00011785,2]
[406950389,1772338440752,-1000.0,0.00011785,2]
[406950390,1772338442553,-1000.0,0.00011785,2]
[406950391,1772338447256,-1000.0,0.00011667,2]
[406950392,1772338448354,-1000.0,0.00011667,2]
[406950393,1772338449420,-1000.0,0.00011667,2]
[406950394,1772338452916,-1000.0,0.00011667,2]
[406950395,1772338454197,-1000.0,0.00011667,2]
[406950396,1772338460703,-571.02142604,0.00011904,2]
[406950397,1772338460726,-272.81271067,0.00011983,2]
[406950398,1772338460751,-156.16586329,0.0001199,2]
[406950399,1772338467651,-1000.0,0.0001187,2]
[406950400,1772338468606,-1000.0,0.0001187,2]
[406950401,1772338469571,-1000.0,0.0001187,2]
[406950402,1772338470670,-1000.0,0.0001187,2]
[406950403,1772338471864,-1000.0,0.0001187,2]
[406950404,1772338473253,-143.83413671,0.0001199,2]
[406950405,1772338473273,-856.16586329,0.00011991,2]
[406950406,1772338478218,-1000.0,0.00011991,2]
[406950407,1772338479520,-1000.0,0.00011991,2]
[406950408,1772338480755,-1000.0,0.00011991,2]
[406950409,1772338481762,-1000.0,0.00011991,2]
[406950410,1772338483304,-1000.0,0.00011991,2]
[406950411,1772338484358,-1000.0,0.00011991,2]
[406950412,1772338487421,381.29,0.000158,120]
[406950413,1772338489174,-1000.0,0.00011991,2]
[406950414,1772338490286,-1000.0,0.00011991,2]
[406950415,1772338491256,-1000.0,0.00011871,2]
[406950416,1772338496200,-1000.0,0.00011871,2]
[406950417,1772338497395,-1000.0,0.00011871,2]
[406950418,1772338498413,-1000.0,0.00011871,2]
[406950419,1772338499398,-1000.0,0.00011871,2]
[406950420,1772338504500,-1000.0,0.00011991,2]
[406950421,1772338509407,-769.28975301,0.00011991,2]
[406950422,1772338509429,-200.0,0.00012099,2]
[406950423,1772338509452,-30.71024699,0.00012329,2]
[406950424,1772338587641,-256.0979292,0.00011852,2]
[406950425,1772338587666,-286.5945,0.00012106,2]
[406950426,1772338587689,-457.3075708,0.00012205,2]
[406950433,1772338592381,-1000.0,0.00012205,2]
[406950434,1772338594542,-1000.0,0.00012205,2]
[406950435,1772338595554,-1000.0,0.00012205,2]
[406950436,1772338596567,-1000.0,0.00012205,2]
[406950437,1772338597768,-542.6924292,0.00012205,2]
[406950438,1772338597791,-286.33,0.00012329,2]
[406950439,1772338597815,-170.9775708,0.00012873,4]
[406950449,1772338605244,-1000.0,0.00012083,2]
[406950450,1772338606222,-1000.0,0.00012083,2]
[406950451,1772338607207,-1000.0,0.00012083,2]
[406950452,1772338608161,-1000.0,0.00012083,2]
[406950453,1772338609050,-1000.0,0.00012083,2]
[406950454,1772338674584,-829.0224292,0.00012873,4]
[406950455,1772338674623,-170.9775708,0.00013,7]
[406950456,1772338675825,-829.0224292,0.00013,7]
[406950457,1772338683207,-170.9775708,0.00012771,2]
[406950458,1772338693631,-1000.0,0.00012771,2]
[406950459,1772338694888,-1000.0,0.00012771,2]
[406950460,1772338695850,-1000.0,0.00012771,2]
[406950461,1772338703203,-1000.0,0.00012771,2]
[406950462,1772338704185,-829.0224292,0.00012771,2]
[406950463,1772338704209,-150.0,0.00012822,2]
[406950464,1772338704231,-20.9775708,0.00012859,2]
[406950465,1772338705177,-179.0224292,0.00012859,2]
[406950466,1772338705199,-820.9775708,0.000129,2]
[406950467,1772338706264,-438.63560689,0.000129,2]
[406950468,1772338706287,-561.36439311,0.00012997,2]
[406950469,1772338707180,-638.63560689,0.00012997,2]
[406950470,1772338707203,-300.0,0.00012997,2]
[406950471,1772338707224,-61.36439311,0.00012997,2]
[406950489,1772338846974,163.42,0.000158,120]
[406950490,1772338873756,-300.0,0.0001277,2]
[406950491,1772338873776,-300.0,0.0001277,2]